[Event "Delancey UK Schools 2019 U14"]
[Site "Daventry"]
[Date "2019.09.24"]
[Round "4.1"]
[White "Balaji, Aaravamudhan"]
[Black "Ratnesan, Ranesh"]
[Result "1-0"]
[ECO "D19"]
[WhiteElo "2086"]
[BlackElo "2180"]
[Annotator "ChessBase"]
[PlyCount "59"]
[EventDate "2019.09.24"]
[EventCountry "GBR"]
[SourceTitle "playchess.com"]
[Source "ChessBase"]
[SourceQuality "1"]
[TimeControl "40/5400+30:1800+30"]

1. d4 {[%emt 1:10:11]} d5 {[%emt 1:10:12]} 2. c4 {[%emt 0:00:21]} c6 {[%emt 0:00:22]} 3. Nc3 {[%emt 0:00:28]} Nf6 {[%emt 0:00:24]} 4. Nf3 {[%emt 0:01:00]} dxc4 {[%emt 0:00:34]} 5. a4 {[%emt 0:00:29]} Bf5 {[%emt 0:00:27]} 6. e3 {[%emt 0:00:34]} e6 {[%emt 0:00:34]} 7. Bxc4 {[%emt 0:00:27]} Bb4 {[%emt 0:00:35]} 8. O-O {[%emt 0:00:29]} Nbd7 {[%emt 0:00:27]} 9. Qe2 {[%emt 0:00:44]} O-O {[%emt 0:00:44]} 10. Rd1 {[%emt 0:03:31]} Qc7 {[%emt 0:01:37]} 11. e4 {[%emt 0:02:17]} Bg6 {[%emt 0:00:26]} 12. e5 {[%emt 0:01:56]} Nd5 {[%emt 0:01:12]} 13. Bd2 {[%emt 0:00:47]} Be7 {[%emt 0:01:44]} 14. Rac1 {[%emt 0:04:01]} Qd8 {[%emt 0:01:35]} 15. Ne4 {[%emt 0:02:48]} Rc8 {[%emt 0:01:24]} 16. Ne1 {[%emt 0:01:50]} Qb6 {[%emt 0:02:57]} 17. Bc3 {[%emt 0:02:39]} Rfd8 {[%emt 0:01:14]} 18. Nd3 {[%emt 0:01:12]} Nxc3 {[%emt 0:03:51]} 19. bxc3 {[%emt 0:00:39]} c5 {[%emt 0:00:53]} 20. d5 {[%emt 0:01:33]} exd5 {[%emt 0:01:14]} 21. Bxd5 {[%emt 0:00:22]} c4 {[%emt 0:00:42]} 22. Nf4 {[%emt 0:00:41]} Nxe5 {[%emt 0:02:40]} 23. Rb1 {[%emt 0:00:54]} Qa5 {[%emt 0:00:33]} 24. Bxb7 {[%emt 0:01:18]} Rxd1+ {[%emt 0:01:22]} 25. Rxd1 {[%emt 0:00:52]} Rc7 {[%emt 0:01:14]} 26. Rb1 {[%emt 0:00:38]} Bf8 {[%emt 0:01:38]} 27. h3 {[%emt 0:00:31]} Qxa4 {[%emt 0:00:30]} 28. Nd5 {[%emt 0:00:34]} Rd7 {[%emt 0:02:22]} 29. Nef6+ {[%emt 0:00:27]} gxf6 {[%emt 0:00:22]} 30. Nxf6+ {[%emt 0:00:22]} 1-0

[Event "Delancey UK Schools 2019 U14"]
[Site "Daventry"]
[Date "2019.09.24"]
[Round "4.2"]
[White "Hosdurga, Chirag"]
[Black "Sheikh, Samia Zannat"]
[Result "1/2-1/2"]
[ECO "E76"]
[WhiteElo "1786"]
[BlackElo "1512"]
[Annotator "NA"]
[PlyCount "97"]
[EventDate "2019.09.24"]
[EventCountry "GBR"]
[SourceTitle "playchess.com"]
[Source "ChessBase"]
[SourceQuality "1"]
[TimeControl "40/5400+30:1800+30"]

1. d4 {[%emt 1:10:11]} c5 {[%emt 1:10:11]} 2. d5 {[%emt 0:00:20]} d6 {[%emt 0:00:21]} 3. c4 {[%emt 0:00:21]} g6 {[%emt 0:00:22]} 4. Nc3 {[%emt 0:00:23]} Bg7 {[%emt 0:00:21]} 5. e4 {[%emt 0:00:23]} Nf6 {[%emt 0:00:22]} 6. f4 {[%emt 0:00:21]} a6 {[%emt 0:00:41]} 7. Nf3 {[%emt 0:00:23]} Bg4 {[%emt 0:00:22]} 8. Be2 {[%emt 0:00:23]} Nbd7 {[%emt 0:00:22]} 9. O-O {[%emt 0:00:34]} O-O {[%emt 0:00:29]} 10. h3 {[%emt 0:00:24]} Bxf3 11. Bxf3 {[%emt 0:00:21]} Qc7 {[%emt 0:00:47]} 12. Re1 {[%emt 0:00:34]} Rab8 {[%emt 0:00:56]} 13. a4 {[%emt 0:00:23]} Rfe8 {[%emt 0:01:37]} 14. Qd3 {[%emt 0:03:13]} h5 {[%emt 0:01:11]} 15. Bd2 {[%emt 0:00:33]} Rbd8 {[%emt 0:00:52]} 16. Rad1 {[%emt 0:01:39]} Nh7 {[%emt 0:01:15]} 17. Be3 {[%emt 0:01:06]} Qb6 {[%emt 0:01:42]} 18. Qc2 {[%emt 0:01:25]} Qb4 {[%emt 0:00:37]} 19. Be2 {[%emt 0:02:16]} Nb6 {[%emt 0:02:50]} 20. Na2 {[%emt 0:02:42]} Qxb2 {[%emt 0:01:36]} 21. Qxb2 {[%emt 0:01:58]} Bxb2 {[%emt 0:00:24]} 22. Rb1 {[%emt 0:00:21]} Nxa4 {[%emt 0:00:24]} 23. Bd1 {[%emt 0:00:42]} Nb6 {[%emt 0:03:14]} 24. Rxb2 {[%emt 0:00:38]} Nxc4 {[%emt 0:00:23]} 25. Rxb7 {[%emt 0:01:31]} Ra8 {[%emt 0:01:00]} 26. Bf2 {[%emt 0:04:07]} Nf6 {[%emt 0:01:55]} 27. Ba4 {[%emt 0:01:20]} Red8 {[%emt 0:02:20]} 28. Rxe7 {[%emt 0:00:48]} Nb2 {[%emt 0:01:29]} 29. Bc6 {[%emt 0:01:26]} Rab8 {[%emt 0:00:27]} 30. Bh4 {[%emt 0:00:25]} Kg7 {[%emt 0:01:35]} 31. e5 {[%emt 0:00:29]} dxe5 {[%emt 0:00:25]} 32. R1xe5 {[%emt 0:01:56]} Nd3 {[%emt 0:00:44]} 33. Bxf6+ {[%emt 0:02:15]} Kxf6 {[%emt 0:00:23]} 34. Re3 {[%emt 0:00:27]} Nxf4 {[%emt 0:00:32]} 35. Nc3 {[%emt 0:00:32]} Rb2 {[%emt 0:01:07]} 36. g4 {[%emt 0:00:46]} hxg4 {[%emt 0:01:13]} 37. hxg4 {[%emt 0:00:20]} Rg2+ {[%emt 0:00:45]} 38. Kf1 {[%emt 0:00:21]} Rh8 {[%emt 0:00:33]} 39. Ne4+ {[%emt 0:00:59]} Kg7 {[%emt 0:00:37]} 40. Ng3 {[%emt 0:00:27]} Rd2 {[%emt 0:01:41]} 41. Rf3 {[%emt 0:30:27]} Rd4 {[%emt 0:30:32]} 42. Ne2 {[%emt 0:00:26]} Rh1+ {[%emt 0:00:22]} 43. Kf2 {[%emt 0:00:21]} Rh2+ {[%emt 0:00:26]} 44. Kg3 {[%emt 0:00:22]} Rxe2 {[%emt 0:00:37]} 45. Rxe2 {[%emt 0:00:48]} Nxe2+ {[%emt 0:00:22]} 46. Kf2 {[%emt 0:00:21]} Nc1 {[%emt 0:00:27]} 47. Kg3 {[%emt 0:00:37]} Ne2+ {[%emt 0:00:28]} 48. Kf2 {[%emt 0:00:22]} Nc1 {[%emt 0:00:25]} 49. Kg3 {[%emt 0:00:25]} 1/2-1/2

[Event "Delancey UK Schools 2019 U14"]
[Site "Daventry"]
[Date "2019.09.24"]
[Round "4.3"]
[White "Clarke, Connor"]
[Black "Bansal, Saahil"]
[Result "1-0"]
[ECO "A45"]
[WhiteElo "1711"]
[BlackElo "1655"]
[Annotator "NA"]
[PlyCount "119"]
[EventDate "2019.09.24"]
[EventCountry "GBR"]
[SourceTitle "playchess.com"]
[Source "ChessBase"]
[SourceQuality "1"]
[TimeControl "40/5400+30:1800+30"]

1. d4 {[%emt 1:10:12]} Nf6 {[%emt 1:10:11]} 2. Nc3 {[%emt 0:00:41]} e6 {[%emt 0:00:34]} 3. Bf4 {[%emt 0:00:25]} Bb4 {[%emt 0:00:41]} 4. Qd3 {[%emt 0:01:37]} Nd5 {[%emt 0:00:24]} 5. Bd2 {[%emt 0:00:36]} Bxc3 {[%emt 0:01:41]} 6. Bxc3 {[%emt 0:00:47]} O-O {[%emt 0:00:41]} 7. e4 {[%emt 0:00:30]} Nxc3 {[%emt 0:00:07]} 8. Qxc3 {[%emt 0:00:25]} d5 {[%emt 0:01:12]} 9. e5 {[%emt 0:00:58]} Nd7 {[%emt 0:00:26]} 10. f4 {[%emt 0:00:42]} Qe7 {[%emt 0:00:33]} 11. Qxc7 {[%emt 0:01:40]} Qb4+ {[%emt 0:00:46]} 12. Qc3 {[%emt 0:00:24]} Qxc3+ {[%emt 0:00:22]} 13. bxc3 {[%emt 0:00:26]} Nb6 {[%emt 0:00:21]} 14. Bd3 {[%emt 0:01:05]} Bd7 {[%emt 0:00:49]} 15. Kd2 {[%emt 0:00:29]} Rfc8 {[%emt 0:00:57]} 16. Ne2 {[%emt 0:00:38]} Nc4+ {[%emt 0:00:48]} 17. Bxc4 {[%emt 0:00:35]} Rxc4 {[%emt 0:00:28]} 18. Rab1 {[%emt 0:00:42]} b6 {[%emt 0:00:22]} 19. Rb4 {[%emt 0:00:33]} Rac8 {[%emt 0:00:35]} 20. Rhb1 {[%emt 0:00:54]} Kf8 {[%emt 0:01:14]} 21. Rxc4 {[%emt 0:00:59]} Rxc4 {[%emt 0:00:51]} 22. Rb4 {[%emt 0:00:36]} Rc7 {[%emt 0:06:23]} 23. Nc1 {[%emt 0:00:57]} Ke7 {[%emt 0:00:59]} 24. a4 {[%emt 0:01:41]} Rc4 {[%emt 0:01:40]} 25. a5 {[%emt 0:02:24]} b5 {[%emt 0:04:02]} 26. Nd3 {[%emt 0:00:48]} Bc8 {[%emt 0:01:42]} 27. Rxb5 {[%emt 0:00:59]} a6 {[%emt 0:00:23]} 28. Rc5 {[%emt 0:00:27]} Rxc5 {[%emt 0:00:27]} 29. Nxc5 {[%emt 0:00:25]} Kd8 {[%emt 0:00:22]} 30. c4 {[%emt 0:00:37]} Kc7 {[%emt 0:00:42]} 31. cxd5 {[%emt 0:00:54]} exd5 {[%emt 0:00:22]} 32. Kc3 {[%emt 0:00:40]} Kc6 {[%emt 0:00:22]} 33. Kb4 {[%emt 0:00:28]} g6 {[%emt 0:00:23]} 34. h3 {[%emt 0:00:58]} h5 {[%emt 0:00:21]} 35. c3 {[%emt 0:00:41]} Kc7 {[%emt 0:00:30]} 36. Na4 {[%emt 0:01:02]} Kc6 {[%emt 0:00:35]} 37. Nb2 {[%emt 0:01:19]} Bf5 {[%emt 0:00:48]} 38. Nd1 {[%emt 0:00:36]} Be4 {[%emt 0:00:28]} 39. Ne3 {[%emt 0:00:37]} h4 {[%emt 0:00:27]} 40. c4 {[%emt 0:00:30]} dxc4 {[%emt 0:00:37]} 41. Kxc4 {[%emt 0:30:26]} Bb1 {[%emt 0:30:23]} 42. d5+ {[%emt 0:00:30]} Kc7 {[%emt 0:00:23]} 43. Kc5 {[%emt 0:00:27]} Be4 {[%emt 0:00:22]} 44. d6+ {[%emt 0:00:31]} Kb7 {[%emt 0:00:21]} 45. Kd4 {[%emt 0:01:30]} Bc6 {[%emt 0:00:47]} 46. e6 {[%emt 0:01:07]} fxe6 {[%emt 0:00:34]} 47. Ke5 {[%emt 0:00:24]} Bd7 {[%emt 0:00:25]} 48. Kf6 {[%emt 0:00:21]} Kc6 {[%emt 0:00:22]} 49. Ke7 {[%emt 0:00:38]} Bc8 {[%emt 0:00:21]} 50. Nc4 {[%emt 0:00:43]} g5 {[%emt 0:00:30]} 51. Nb6 {[%emt 0:01:14]} Bd7 {[%emt 0:00:34]} 52. Nxd7 {[%emt 0:00:22]} g4 {[%emt 0:00:21]} 53. Ne5+ {[%emt 0:00:22]} Kb7 {[%emt 0:00:22]} 54. hxg4 {[%emt 0:00:27]} h3 {[%emt 0:00:21]} 55. gxh3 {[%emt 0:00:28]} Kc8 {[%emt 0:00:22]} 56. d7+ {[%emt 0:00:21]} Kb7 {[%emt 0:00:22]} 57. d8=Q {[%emt 0:00:30]} Ka7 {[%emt 0:00:20]} 58. Nc6+ {[%emt 0:00:28]} Kb7 {[%emt 0:00:21]} 59. Qb6+ {[%emt 0:00:21]} Kc8 {[%emt 0:00:21]} 60. Qb8# {[%emt 0:00:21]} 1-0

[Event "Delancey UK Schools 2019 U14"]
[Site "Daventry"]
[Date "2019.09.24"]
[Round "4.4"]
[White "Kan, Toby"]
[Black "Cox, Toby"]
[Result "1/2-1/2"]
[ECO "A08"]
[WhiteElo "1714"]
[BlackElo "1616"]
[Annotator "NA"]
[PlyCount "124"]
[EventDate "2019.09.24"]
[EventCountry "GBR"]
[SourceTitle "playchess.com"]
[Source "ChessBase"]
[SourceQuality "1"]
[TimeControl "40/5400+30:1800+30"]

1. e4 {[%emt 1:10:12]} e6 {[%emt 1:10:10]} 2. d3 {[%emt 0:00:22]} c5 {[%emt 0:00:22]} 3. Nd2 {[%emt 0:00:28]} Nc6 {[%emt 0:00:24]} 4. g3 {[%emt 0:00:23]} g6 {[%emt 0:00:46]} 5. Bg2 {[%emt 0:00:26]} Bg7 {[%emt 0:00:23]} 6. c3 {[%emt 0:00:27]} Nge7 {[%emt 0:00:29]} 7. Ngf3 {[%emt 0:00:23]} O-O {[%emt 0:00:27]} 8. O-O {[%emt 0:00:22]} d5 {[%emt 0:00:44]} 9. Re1 {[%emt 0:00:39]} h6 {[%emt 0:01:38]} 10. Nf1 {[%emt 0:00:34]} f5 {[%emt 0:02:11]} 11. exf5 {[%emt 0:00:26]} exf5 {[%emt 0:00:02]} 12. h4 {[%emt 0:01:48]} Kh7 {[%emt 0:02:05]} 13. Bf4 {[%emt 0:01:25]} d4 {[%emt 0:02:49]} 14. c4 {[%emt 0:00:52]} Ng8 {[%emt 0:03:05]} 15. Qd2 {[%emt 0:02:18]} Nf6 {[%emt 0:00:39]} 16. Ne5 {[%emt 0:02:00]} Bd7 {[%emt 0:01:22]} 17. Nxd7 {[%emt 0:02:14]} Qxd7 {[%emt 0:00:21]} 18. Nh2 {[%emt 0:01:36]} Nh5 {[%emt 0:00:48]} 19. a3 {[%emt 0:00:43]} Nxf4 {[%emt 0:00:58]} 20. Nf3 {[%emt 0:01:44]} Rae8 {[%emt 0:00:08]} 21. Qxf4 {[%emt 0:00:00]} Bf6 {[%emt 0:01:51]} 22. Kf1 {[%emt 0:01:25]} Nd8 {[%emt 0:00:59]} 23. b4 {[%emt 0:01:57]} Ne6 {[%emt 0:00:41]} 24. Qd2 {[%emt 0:00:25]} Qc7 {[%emt 0:01:23]} 25. Bh3 {[%emt 0:01:40]} Re7 {[%emt 0:01:33]} 26. Re2 {[%emt 0:01:20]} Rfe8 {[%emt 0:00:26]} 27. Rae1 {[%emt 0:00:23]} b6 {[%emt 0:00:36]} 28. b5 {[%emt 0:00:43]} Ng7 {[%emt 0:02:38]} 29. Rxe7 {[%emt 0:02:34]} Rxe7 {[%emt 0:00:23]} 30. Rxe7 {[%emt 0:00:21]} Qxe7 {[%emt 0:00:23]} 31. Qe2 {[%emt 0:00:24]} Qxe2+ {[%emt 0:01:19]} 32. Kxe2 {[%emt 0:00:21]} g5 {[%emt 0:00:24]} 33. hxg5 {[%emt 0:00:37]} hxg5 {[%emt 0:00:21]} 34. Bg2 {[%emt 0:00:49]} Kg6 {[%emt 0:00:26]} 35. Nh2 {[%emt 0:01:16]} Nh5 {[%emt 0:01:03]} 36. Nf1 {[%emt 0:01:15]} Be5 {[%emt 0:00:43]} 37. a4 {[%emt 0:00:41]} g4 {[%emt 0:01:08]} 38. Bh1 {[%emt 0:01:02]} Kg5 {[%emt 0:00:33]} 39. Bb7 {[%emt 0:00:50]} f4 {[%emt 0:00:42]} 40. gxf4+ {[%emt 0:00:42]} Nxf4+ {[%emt 0:00:23]} 41. Kd2 {[%emt 0:30:42]} Nh3 {[%emt 0:30:26]} 42. Ke2 {[%emt 0:00:28]} Kf4 {[%emt 0:00:56]} 43. Ng3 {[%emt 0:01:52]} Bd6 {[%emt 0:01:52]} 44. Bh1 {[%emt 0:00:25]} Be7 {[%emt 0:00:26]} 45. Bg2 {[%emt 0:00:35]} Nxf2 46. Kxf2 {[%emt 0:00:32]} Bh4 {[%emt 0:00:45]} 47. Kf1 {[%emt 0:00:35]} Bxg3 {[%emt 0:00:31]} 48. Be4 {[%emt 0:00:23]} Ke3 {[%emt 0:00:24]} 49. Kg2 {[%emt 0:00:22]} Bf2 {[%emt 0:00:23]} 50. Bf5 {[%emt 0:00:23]} g3 {[%emt 0:00:22]} 51. Be4 {[%emt 0:00:21]} Kd2 {[%emt 0:00:21]} 52. Bf5 {[%emt 0:00:24]} Kc3 {[%emt 0:00:22]} 53. Be4 {[%emt 0:00:22]} Kd2 {[%emt 0:00:00]} 54. Bf5 {[%emt 0:00:00]} Ke3 {[%emt 0:00:16]} 55. Be4 {[%emt 0:00:20]} Kf4 {[%emt 0:00:21]} 56. Bh7 {[%emt 0:00:26]} Ke3 {[%emt 0:00:52]} 57. Be4 {[%emt 0:00:00]} Kd2 {[%emt 0:00:21]} 58. Bh7 {[%emt 0:00:18]} Ke3 {[%emt 0:00:30]} 59. Be4 {[%emt 0:00:30]} Kd2 {[%emt 0:00:30]} 60. Bh7 {[%emt 0:00:30]} Ke3 {[%emt 0:00:30]} 61. Be4 {[%emt 0:00:30]} Kd2 {[%emt 0:00:39]} 62. Bh7 {[%emt 0:00:30]} Kc3 {[%emt 0:00:30]} 1/2-1/2

[Event "Delancey UK Schools 2019 U14"]
[Site "Daventry"]
[Date "2019.09.24"]
[Round "4.5"]
[White "Saunders, Aron"]
[Black "Volovich, Julia"]
[Result "1/2-1/2"]
[ECO "C01"]
[WhiteElo "1428"]
[BlackElo "1743"]
[Annotator "NA"]
[PlyCount "129"]
[EventDate "2019.09.24"]
[EventCountry "GBR"]
[SourceTitle "playchess.com"]
[Source "ChessBase"]
[SourceQuality "1"]
[TimeControl "40/5400+30:1800+30"]

1. e4 {[%emt 1:10:11]} e6 {[%emt 1:10:26]} 2. d4 {[%emt 0:00:23]} d5 {[%emt 0:00:27]} 3. exd5 {[%emt 0:00:22]} exd5 {[%emt 0:00:30]} 4. c4 {[%emt 0:00:22]} Nf6 {[%emt 0:00:33]} 5. Nc3 {[%emt 0:00:22]} Be7 {[%emt 0:00:31]} 6. Nf3 {[%emt 0:00:22]} O-O {[%emt 0:00:32]} 7. Be3 {[%emt 0:00:31]} Nc6 {[%emt 0:00:37]} 8. Bd3 {[%emt 0:00:25]} Bg4 {[%emt 0:01:11]} 9. O-O {[%emt 0:00:37]} Rb8 {[%emt 0:01:12]} 10. cxd5 {[%emt 0:01:16]} Nxd5 {[%emt 0:00:47]} 11. Be4 {[%emt 0:03:27]} Nf6 {[%emt 0:04:33]} 12. d5 {[%emt 0:03:37]} Nxe4 {[%emt 0:02:23]} 13. dxc6 {[%emt 0:02:39]} Nxc3 {[%emt 0:02:03]} 14. bxc3 {[%emt 0:00:31]} bxc6 {[%emt 0:03:24]} 15. Qxd8 {[%emt 0:01:43]} Rbxd8 {[%emt 0:01:11]} 16. Ne5 {[%emt 0:01:24]} Bd7 {[%emt 0:04:54]} 17. Rad1 {[%emt 0:02:40]} Be6 {[%emt 0:01:16]} 18. Nxc6 {[%emt 0:00:55]} Rde8 {[%emt 0:00:31]} 19. Nxe7+ {[%emt 0:00:55]} Rxe7 {[%emt 0:00:21]} 20. Bc5 {[%emt 0:00:22]} Ree8 {[%emt 0:00:33]} 21. Bxf8 {[%emt 0:00:46]} Kxf8 {[%emt 0:00:21]} 22. Rfe1 {[%emt 0:00:46]} Rb8 {[%emt 0:00:57]} 23. Rd2 {[%emt 0:00:38]} a6 {[%emt 0:00:44]} 24. f4 {[%emt 0:00:29]} g6 {[%emt 0:00:30]} 25. h3 {[%emt 0:00:46]} h5 {[%emt 0:00:21]} 26. Kf2 {[%emt 0:00:24]} Rb6 {[%emt 0:00:37]} 27. Kg3 {[%emt 0:01:08]} Rc6 {[%emt 0:00:34]} 28. Re3 {[%emt 0:00:33]} Rc4 {[%emt 0:00:27]} 29. Rd8+ {[%emt 0:01:54]} Ke7 {[%emt 0:00:27]} 30. Ra8 {[%emt 0:00:37]} h4+ {[%emt 0:00:25]} 31. Kxh4 {[%emt 0:00:38]} Rxf4+ {[%emt 0:00:22]} 32. Kg3 {[%emt 0:01:00]} Ra4 {[%emt 0:00:25]} 33. Re2 {[%emt 0:01:08]} Ra3 {[%emt 0:00:23]} 34. Kh2 {[%emt 0:00:55]} Kd7 {[%emt 0:00:47]} 35. g4 {[%emt 0:00:39]} Bxa2 {[%emt 0:00:46]} 36. h4 {[%emt 0:00:33]} Be6 {[%emt 0:01:01]} 37. h5 {[%emt 0:01:21]} Rxc3 {[%emt 0:00:53]} 38. hxg6 {[%emt 0:01:18]} fxg6 {[%emt 0:00:35]} 39. g5 {[%emt 0:00:33]} Rh3+ {[%emt 0:00:42]} 40. Kg2 {[%emt 0:00:21]} Rh4 {[%emt 0:00:25]} 41. Rxa6 {[%emt 0:30:47]} Bc4 {[%emt 0:30:28]} 42. Rd2+ {[%emt 0:00:24]} Ke7 {[%emt 0:00:25]} 43. Rxg6 {[%emt 0:00:24]} Bf7 {[%emt 0:00:22]} 44. Rg7 {[%emt 0:00:25]} Kf8 {[%emt 0:00:20]} 45. Kg3 {[%emt 0:00:43]} Rh1 {[%emt 0:00:33]} 46. g6 {[%emt 0:00:32]} Kxg7 {[%emt 0:00:42]} 47. gxf7 {[%emt 0:00:24]} Rf1 {[%emt 0:00:35]} 48. f8=Q+ {[%emt 0:00:34]} Kxf8 {[%emt 0:00:30]} 49. Rc2 {[%emt 0:00:21]} Rf7 {[%emt 0:00:23]} 50. Rf2 {[%emt 0:00:38]} Rxf2 {[%emt 0:00:24]} 51. Kxf2 {[%emt 0:00:21]} Ke7 {[%emt 0:00:20]} 52. Ke3 {[%emt 0:00:21]} Kd6 {[%emt 0:00:20]} 53. Kd4 {[%emt 0:00:21]} Kc6 {[%emt 0:00:34]} 54. Kc4 {[%emt 0:00:22]} Kb6 {[%emt 0:00:21]} 55. Kb4 {[%emt 0:00:21]} c5+ {[%emt 0:00:21]} 56. Kc4 {[%emt 0:00:22]} Kc6 {[%emt 0:00:20]} 57. Kc3 {[%emt 0:00:21]} Kb5 {[%emt 0:00:21]} 58. Kb3 {[%emt 0:00:22]} c4+ {[%emt 0:00:21]} 59. Kc3 {[%emt 0:00:21]} Kc5 {[%emt 0:00:21]} 60. Kc2 {[%emt 0:00:21]} Kd4 {[%emt 0:00:22]} 61. Kd2 {[%emt 0:00:22]} c3+ {[%emt 0:00:21]} 62. Kc2 {[%emt 0:00:20]} Kc4 {[%emt 0:00:20]} 63. Kc1 {[%emt 0:00:24]} Kd3 {[%emt 0:00:27]} 64. Kd1 {[%emt 0:00:22]} c2+ {[%emt 0:00:20]} 65. Kc1 {[%emt 0:00:20]} 1/2-1/2

[Event "Delancey UK Schools 2019 U14"]
[Site "Daventry"]
[Date "2019.09.24"]
[Round "4.6"]
[White "Woltery, Nicolai"]
[Black "Akeya-Price, Robert"]
[Result "1-0"]
[ECO "A18"]
[WhiteElo "1864"]
[BlackElo "1892"]
[Annotator "NA"]
[PlyCount "57"]
[EventDate "2019.09.24"]
[EventCountry "GBR"]
[SourceTitle "playchess.com"]
[Source "ChessBase"]
[SourceQuality "1"]
[TimeControl "40/5400+30:1800+30"]

1. c4 {[%emt 1:10:11]} Nf6 {[%emt 1:10:13]} 2. Nc3 {[%emt 0:00:22]} e6 {[%emt 0:01:31]} 3. e4 {[%emt 0:00:26]} d5 {[%emt 0:00:22]} 4. cxd5 {[%emt 0:00:25]} exd5 {[%emt 0:00:35]} 5. e5 {[%emt 0:00:26]} Ng8 {[%emt 0:02:54]} 6. d4 {[%emt 0:01:13]} c6 {[%emt 0:03:02]} 7. Bd3 {[%emt 0:01:50]} Ne7 {[%emt 0:00:49]} 8. Nge2 {[%emt 0:01:37]} g6 {[%emt 0:01:34]} 9. O-O {[%emt 0:05:26]} Bg7 {[%emt 0:00:33]} 10. Ng3 {[%emt 0:02:13]} Qb6 {[%emt 0:02:57]} 11. Bc2 {[%emt 0:02:24]} O-O {[%emt 0:01:01]} 12. b3 {[%emt 0:01:19]} Na6 {[%emt 0:01:23]} 13. Na4 {[%emt 0:01:17]} Qc7 {[%emt 0:00:55]} 14. Ba3 {[%emt 0:01:42]} b6 {[%emt 0:05:00]} 15. Rc1 {[%emt 0:00:56]} Qd8 {[%emt 0:01:55]} 16. Qd2 {[%emt 0:01:48]} Nc7 {[%emt 0:00:31]} 17. Bd3 {[%emt 0:00:46]} Bd7 {[%emt 0:00:52]} 18. f4 {[%emt 0:01:04]} Rc8 {[%emt 0:01:28]} 19. f5 {[%emt 0:01:30]} gxf5 {[%emt 0:01:25]} 20. Nxf5 {[%emt 0:00:50]} Bxf5 {[%emt 0:00:24]} 21. Bxf5 {[%emt 0:00:29]} Ne6 {[%emt 0:00:25]} 22. Qd3 {[%emt 0:00:58]} h6 {[%emt 0:00:42]} 23. Rf3 {[%emt 0:00:48]} Re8 {[%emt 0:00:34]} 24. Bh7+ {[%emt 0:01:02]} Kf8 {[%emt 0:00:34]} 25. Rxf7+ {[%emt 0:00:56]} Kxf7 {[%emt 0:00:22]} 26. Rf1+ {[%emt 0:00:21]} Nf4 {[%emt 0:00:38]} 27. Rxf4+ {[%emt 0:00:24]} Ke6 {[%emt 0:00:21]} 28. Qh3+ {[%emt 0:00:36]} Nf5 {[%emt 0:00:48]} 29. Qxf5# {[%emt 0:00:24]} 1-0

[Event "Delancey UK Schools 2019 U14"]
[Site "Daventry"]
[Date "2019.09.24"]
[Round "4.7"]
[White "Yoon, Jacob D"]
[Black "Saidmurodov, Shahjahon"]
[Result "1-0"]
[ECO "D00"]
[WhiteElo "2086"]
[BlackElo "1782"]
[Annotator "NA"]
[PlyCount "45"]
[EventDate "2019.09.24"]
[EventCountry "GBR"]
[SourceTitle "playchess.com"]
[Source "ChessBase"]
[SourceQuality "1"]
[TimeControl "40/5400+30:1800+30"]

1. d4 {[%emt 1:10:11]} Nf6 {[%emt 1:10:14]} 2. Nc3 {[%emt 0:00:21]} d5 {[%emt 0:00:28]} 3. Bf4 {[%emt 0:00:21]} e6 {[%emt 0:00:24]} 4. Nb5 {[%emt 0:00:22]} Bd6 {[%emt 0:00:56]} 5. Nxd6+ {[%emt 0:00:25]} cxd6 {[%emt 0:00:21]} 6. Nf3 {[%emt 0:00:40]} Nc6 {[%emt 0:00:21]} 7. e3 {[%emt 0:01:07]} Qc7 {[%emt 0:00:38]} 8. Be2 {[%emt 0:02:38]} e5 {[%emt 0:01:53]} 9. Bg5 {[%emt 0:01:07]} Be6 {[%emt 0:00:51]} 10. Bxf6 {[%emt 0:01:27]} gxf6 {[%emt 0:00:24]} 11. O-O {[%emt 0:00:58]} e4 {[%emt 0:00:45]} 12. Nd2 {[%emt 0:02:31]} f5 {[%emt 0:00:44]} 13. c4 {[%emt 0:00:57]} dxc4 {[%emt 0:01:01]} 14. Nxe4 {[%emt 0:02:37]} d5 {[%emt 0:03:29]} 15. Nf6+ {[%emt 0:01:11]} Ke7 {[%emt 0:00:28]} 16. Nh5 {[%emt 0:00:23]} b5 {[%emt 0:02:16]} 17. Nf4 {[%emt 0:01:52]} a5 {[%emt 0:01:28]} 18. Rc1 {[%emt 0:00:31]} b4 {[%emt 0:02:45]} 19. Qa4 {[%emt 0:01:48]} Rhd8 {[%emt 0:02:52]} 20. Rfd1 {[%emt 0:00:43]} Ra6 {[%emt 0:01:05]} 21. b3 {[%emt 0:01:22]} Qd6 {[%emt 0:04:59]} 22. bxc4 {[%emt 0:01:36]} Rda8 {[%emt 0:01:42]} 23. cxd5 {[%emt 0:01:00]} 1-0

[Event "Delancey UK Schools 2019 U14"]
[Site "Daventry"]
[Date "2019.09.24"]
[Round "4.8"]
[White "Ismail, Mohammed Aayan"]
[Black "Weersing, Abigail Riis"]
[Result "1-0"]
[ECO "E65"]
[WhiteElo "1583"]
[BlackElo "1734"]
[Annotator "NA"]
[PlyCount "69"]
[EventDate "2019.09.24"]
[EventCountry "GBR"]
[SourceTitle "playchess.com"]
[Source "ChessBase"]
[SourceQuality "1"]
[TimeControl "40/5400+30:1800+30"]

1. Nf3 {[%emt 1:10:11]} Nf6 {[%emt 1:10:11]} 2. c4 {[%emt 0:00:22]} g6 {[%emt 0:00:21]} 3. g3 {[%emt 0:00:21]} Bg7 {[%emt 0:00:22]} 4. Bg2 {[%emt 0:00:22]} d6 {[%emt 0:00:24]} 5. O-O {[%emt 0:00:24]} O-O {[%emt 0:00:24]} 6. Nc3 {[%emt 0:00:22]} c5 {[%emt 0:00:36]} 7. d4 {[%emt 0:01:55]} Nbd7 {[%emt 0:01:30]} 8. b3 {[%emt 0:01:57]} Qb6 {[%emt 0:02:21]} 9. Bb2 {[%emt 0:00:54]} cxd4 {[%emt 0:01:31]} 10. Na4 {[%emt 0:00:26]} Qc7 {[%emt 0:01:23]} 11. Nxd4 {[%emt 0:00:41]} a6 {[%emt 0:01:23]} 12. Rc1 {[%emt 0:01:04]} Nc5 {[%emt 0:00:47]} 13. Nc3 {[%emt 0:00:59]} Qb6 {[%emt 0:03:22]} 14. Nc2 {[%emt 0:01:18]} Bf5 {[%emt 0:02:04]} 15. Ne3 {[%emt 0:01:01]} Be4 {[%emt 0:03:06]} 16. Bxe4 {[%emt 0:00:41]} Nfxe4 {[%emt 0:02:34]} 17. Ncd5 {[%emt 0:00:28]} Qd8 {[%emt 0:01:48]} 18. Bxg7 {[%emt 0:00:24]} Kxg7 {[%emt 0:00:21]} 19. b4 {[%emt 0:01:21]} Ne6 {[%emt 0:00:42]} 20. Qd3 {[%emt 0:01:52]} f5 {[%emt 0:02:29]} 21. Ng2 {[%emt 0:01:56]} b5 {[%emt 0:01:20]} 22. Ngf4 {[%emt 0:00:53]} Nxf4 {[%emt 0:01:04]} 23. Nxf4 {[%emt 0:00:23]} Qd7 {[%emt 0:00:55]} 24. c5 {[%emt 0:01:38]} Rad8 {[%emt 0:00:39]} 25. Qd5 {[%emt 0:00:36]} Ng5 {[%emt 0:00:34]} 26. h4 {[%emt 0:01:36]} e6 {[%emt 0:00:22]} 27. Qb3 {[%emt 0:00:59]} e5 {[%emt 0:00:27]} 28. c6 {[%emt 0:01:24]} Qc7 {[%emt 0:00:47]} 29. Nd5 {[%emt 0:00:23]} Qf7 {[%emt 0:00:26]} 30. hxg5 {[%emt 0:00:24]} f4 {[%emt 0:00:31]} 31. gxf4 {[%emt 0:00:28]} exf4 {[%emt 0:00:22]} 32. Qb2+ {[%emt 0:00:25]} Kg8 {[%emt 0:00:28]} 33. Nf6+ {[%emt 0:00:35]} Kg7 {[%emt 0:00:21]} 34. Ng4+ {[%emt 0:00:22]} Kg8 {[%emt 0:00:23]} 35. Nh6# {[%emt 0:00:02]} 1-0